{"text_format":"1","workbook":"xlsx","n_sheets":5,"sheets":["Simulación","Estadísticos","Regresión","Galton","Instrucciones"],"not_rendered":{"charts":2,"images":13,"macros":1,"external_links":0,"defined_names":9,"comments":0,"pivot_tables":0},"unopened":[],"bounds":{"document_bytes":16777216,"sheet_cells":100000,"rows_first":2000,"rows_last":500,"rows_between":2000,"halvings":0,"cell_chars":16384,"cell_head_chars":4096},"cells_cut":0,"cells_raw":0,"read":"whole","date_system":"1900"}

{"sheet":"Simulación","index":0,"n_rows":104,"n_cols":26,"rows_kept":104,"cut":false,"hidden":false,"merged":[[18,0,18,1],[0,0,0,1],[8,0,8,1],[11,0,11,1],[14,0,14,1]]}
["Simulador",null,null,"A. Roldán – Versión 2.2 – Año 2016"]
[null,"Repeticiones de la simulación",null,null,1]
[null,"Número de filas",null,null,100]
[null,"(de 1 a 1000)"]
[null,"Número de columnas (si procede)",null,null,1,null,2,null,null,null,null,null,null,null,null,null,null,null,null,null,null,null,null,null,20,20]
[null,"(de 1 a 12)",null,null,null,null,3,null,null,null,null,null,null,null,null,null,null,null,null,null,null,null,null,null,10,16]
[null,null,null,null,null,null,2,null,null,null,null,null,null,null,null,null,null,null,null,null,null,null,null,null,16,17]
["Tipo de simulación",null,null,"Extremos (si procede)",null,null,2,null,null,null,null,null,null,null,null,null,null,null,null,null,null,null,null,null,11,17]
["Binomial",null,null,null,null,null,1,null,null,null,null,null,null,null,null,null,null,null,null,null,null,null,null,null,20,17]
[null,null,null,"Mínimo",2,null,0,null,null,null,null,null,null,null,null,null,null,null,null,null,null,null,null,null,15,18]
[null,null,null,"Máximo",77,null,1,null,null,null,null,null,null,null,null,null,null,null,null,null,null,null,null,null,17,17]
[null,null,null,null,null,null,1,null,null,null,null,null,null,null,null,null,null,null,null,null,null,null,null,null,14,16]
[null,null,null,"Parámetros",null,null,1,null,null,null,null,null,null,null,null,null,null,null,null,null,null,null,null,null,12,19]
["Decimal – Entero",null,null,null,null,null,2,null,null,null,null,null,null,null,null,null,null,null,null,null,null,null,null,null,12,14]
["Entero",null,null,"Media",65,null,2,null,null,null,null,null,null,null,null,null,null,null,null,null,null,null,null,null,17,13]
[null,null,null,"Sigma",8,null,1,null,null,null,null,null,null,null,null,null,null,null,null,null,null,null,null,null,14,13]
[null,null,null,null,null,null,2,null,null,null,null,null,null,null,null,null,null,null,null,null,null,null,null,null,17,10]
["Criterios",null,null,null,null,null,2,null,null,null,null,null,null,null,null,null,null,null,null,null,null,null,null,null,17,16]
["Máximo-Mínimo",null,null,"Otros parámetros",null,null,1,null,null,null,null,null,null,null,null,null,null,null,null,null,null,null,null,null,11,15]
[null,null,null,null,null,null,2,null,null,null,null,null,null,null,null,null,null,null,null,null,null,null,null,null,18,17]
[null,null,null,"Intentos",3,null,1,null,null,null,null,null,null,null,null,null,null,null,null,null,null,null,null,null,19,20]
[null,null,null,"Probabilidad",0.5,null,1,null,null,null,null,null,null,null,null,null,null,null,null,null,null,null,null,null,18,13]
[null,null,null,"C",null,null,2,null,null,null,null,null,null,null,null,null,null,null,null,null,null,null,null,null,16,17]
["Número intervalos ",null,null,"D"," ",null,2,null,null,null,null,null,null,null,null,null,null,null,null,null,null,null,null,null,11,17]
[null,4,null,null,null,null,2,null,null,null,null,null,null,null,null,null,null,null,null,null,null,null,null,null,19,19]
[null,null,null,null,null,null,0,null,null,null,null,null,null,null,null,null,null,null,null,null,null,null,null,null,20,15]
[null,null,null,null,null,null,3,null,null,null,null,null,null,null,null,null,null,null,null,null,null,null,null,null,14,14]
[null,null,null,null,null,null,2,null,null,null,null,null,null,null,null,null,null,null,null,null,null,null,null,null,11,13]
[null,null,null,null,null,null,0,null,null,null,null,null,null,null,null,null,null,null,null,null,null,null,null,null,19,16]
[null,null,null,null,null,null,1,null,null,null,null,null,null,null,null,null,null,null,null,null,null,null,null,null,10,12]
[null,null,null,null,null,null,1,null,null,null,null,null,null,null,null,null,null,null,null,null,null,null,null,null,19,13]
[null,null,null,null,null,null,3,null,null,null,null,null,null,null,null,null,null,null,null,null,null,null,null,null,14,16]
[null,null,null,null,null,null,1,null,null,null,null,null,null,null,null,null,null,null,null,null,null,null,null,null,14,18]
[null,null,null,null,null,null,2,null,null,null,null,null,null,null,null,null,null,null,null,null,null,null,null,null,15,14]
[null,null,null,null,null,null,2,null,null,null,null,null,null,null,null,null,null,null,null,null,null,null,null,null,20,10]
[null,null,null,null,null,null,1,null,null,null,null,null,null,null,null,null,null,null,null,null,null,null,null,null,16,15]
[null,null,null,null,null,null,1,null,null,null,null,null,null,null,null,null,null,null,null,null,null,null,null,null,14,18]
[null,null,null,null,null,null,1,null,null,null,null,null,null,null,null,null,null,null,null,null,null,null,null,null,16,11]
[null,null,null,null,null,null,1,null,null,null,null,null,null,null,null,null,null,null,null,null,null,null,null,null,18,18]
[null,null,null,null,null,null,2,null,null,null,null,null,null,null,null,null,null,null,null,null,null,null,null,null,20,15]
[null,null,null,null,null,null,0,null,null,null,null,null,null,null,null,null,null,null,null,null,null,null,null,null,18,18]
[null,null,null,null,null,null,2,null,null,null,null,null,null,null,null,null,null,null,null,null,null,null,null,null,18,13]
[null,null,null,null,null,null,2,null,null,null,null,null,null,null,null,null,null,null,null,null,null,null,null,null,12,20]
[null,null,null,null,null,null,1,null,null,null,null,null,null,null,null,null,null,null,null,null,null,null,null,null,10,11]
[null,null,null,null,null,null,2,null,null,null,null,null,null,null,null,null,null,null,null,null,null,null,null,null,18,15]
[null,null,null,null,null,null,2,null,null,null,null,null,null,null,null,null,null,null,null,null,null,null,null,null,19,10]
[null,null,null,null,null,null,1,null,null,null,null,null,null,null,null,null,null,null,null,null,null,null,null,null,12,17]
[null,null,null,null,null,null,2,null,null,null,null,null,null,null,null,null,null,null,null,null,null,null,null,null,18,20]
[null,null,null,null,null,null,2,null,null,null,null,null,null,null,null,null,null,null,null,null,null,null,null,null,13,17]
[null,null,null,null,null,null,2,null,null,null,null,null,null,null,null,null,null,null,null,null,null,null,null,null,14,13]
[null,null,null,null,null,null,2,null,null,null,null,null,null,null,null,null,null,null,null,null,null,null,null,null,15,19]
[null,null,null,null,null,null,1,null,null,null,null,null,null,null,null,null,null,null,null,null,null,null,null,null,13,19]
[null,null,null,null,null,null,1,null,null,null,null,null,null,null,null,null,null,null,null,null,null,null,null,null,12,16]
[null,null,null,null,null,null,2,null,null,null,null,null,null,null,null,null,null,null,null,null,null,null,null,null,14,20]
[null,null,null,null,null,null,2,null,null,null,null,null,null,null,null,null,null,null,null,null,null,null,null,null,18,19]
[null,null,null,null,null,null,2,null,null,null,null,null,null,null,null,null,null,null,null,null,null,null,null,null,13,16]
[null,null,null,null,null,null,1,null,null,null,null,null,null,null,null,null,null,null,null,null,null,null,null,null,11,11]
[null,null,null,null,null,null,2,null,null,null,null,null,null,null,null,null,null,null,null,null,null,null,null,null,17,20]
[null,null,null,null,null,null,1,null,null,null,null,null,null,null,null,null,null,null,null,null,null,null,null,null,11,19]
[null,null,null,null,null,null,2,null,null,null,null,null,null,null,null,null,null,null,null,null,null,null,null,null,16,18]
[null,null,null,null,null,null,2,null,null,null,null,null,null,null,null,null,null,null,null,null,null,null,null,null,17,10]
[null,null,null,null,null,null,0,null,null,null,null,null,null,null,null,null,null,null,null,null,null,null,null,null,17,17]
[null,null,null,null,null,null,1,null,null,null,null,null,null,null,null,null,null,null,null,null,null,null,null,null,19,16]
[null,null,null,null,null,null,3,null,null,null,null,null,null,null,null,null,null,null,null,null,null,null,null,null,17,16]
[null,null,null,null,null,null,2,null,null,null,null,null,null,null,null,null,null,null,null,null,null,null,null,null,14,18]
[null,null,null,null,null,null,2,null,null,null,null,null,null,null,null,null,null,null,null,null,null,null,null,null,15,14]
[null,null,null,null,null,null,3,null,null,null,null,null,null,null,null,null,null,null,null,null,null,null,null,null,14,18]
[null,null,null,null,null,null,0,null,null,null,null,null,null,null,null,null,null,null,null,null,null,null,null,null,11,18]
[null,null,null,null,null,null,2,null,null,null,null,null,null,null,null,null,null,null,null,null,null,null,null,null,19,20]
[null,null,null,null,null,null,1,null,null,null,null,null,null,null,null,null,null,null,null,null,null,null,null,null,10,16]
[null,null,null,null,null,null,1,null,null,null,null,null,null,null,null,null,null,null,null,null,null,null,null,null,16,17]
[null,null,null,null,null,null,3,null,null,null,null,null,null,null,null,null,null,null,null,null,null,null,null,null,11,17]
[null,null,null,null,null,null,1,null,null,null,null,null,null,null,null,null,null,null,null,null,null,null,null,null,12,20]
[null,null,null,null,null,null,1,null,null,null,null,null,null,null,null,null,null,null,null,null,null,null,null,null,10,13]
[null,null,null,null,null,null,2,null,null,null,null,null,null,null,null,null,null,null,null,null,null,null,null,null,12,12]
[null,null,null,null,null,null,1,null,null,null,null,null,null,null,null,null,null,null,null,null,null,null,null,null,14,17]
[null,null,null,null,null,null,1,null,null,null,null,null,null,null,null,null,null,null,null,null,null,null,null,null,12,20]
[null,null,null,null,null,null,1,null,null,null,null,null,null,null,null,null,null,null,null,null,null,null,null,null,13,15]
[null,null,null,null,null,null,0,null,null,null,null,null,null,null,null,null,null,null,null,null,null,null,null,null,18,14]
[null,null,null,null,null,null,1,null,null,null,null,null,null,null,null,null,null,null,null,null,null,null,null,null,14,13]
[null,null,null,null,null,null,2,null,null,null,null,null,null,null,null,null,null,null,null,null,null,null,null,null,12,17]
[null,null,null,null,null,null,1,null,null,null,null,null,null,null,null,null,null,null,null,null,null,null,null,null,14,12]
[null,null,null,null,null,null,2,null,null,null,null,null,null,null,null,null,null,null,null,null,null,null,null,null,18,11]
[null,null,null,null,null,null,2,null,null,null,null,null,null,null,null,null,null,null,null,null,null,null,null,null,12,11]
[null,null,null,null,null,null,2,null,null,null,null,null,null,null,null,null,null,null,null,null,null,null,null,null,18,19]
[null,null,null,null,null,null,0,null,null,null,null,null,null,null,null,null,null,null,null,null,null,null,null,null,20,15]
[null,null,null,null,null,null,2,null,null,null,null,null,null,null,null,null,null,null,null,null,null,null,null,null,13,13]
[null,null,null,null,null,null,1,null,null,null,null,null,null,null,null,null,null,null,null,null,null,null,null,null,18,13]
[null,null,null,null,null,null,1,null,null,null,null,null,null,null,null,null,null,null,null,null,null,null,null,null,18,18]
[null,null,null,null,null,null,3,null,null,null,null,null,null,null,null,null,null,null,null,null,null,null,null,null,19,14]
[null,null,null,null,null,null,1,null,null,null,null,null,null,null,null,null,null,null,null,null,null,null,null,null,10,10]
[null,null,null,null,null,null,0,null,null,null,null,null,null,null,null,null,null,null,null,null,null,null,null,null,18,10]
[null,null,null,null,null,null,1,null,null,null,null,null,null,null,null,null,null,null,null,null,null,null,null,null,16,13]
[null,null,null,null,null,null,1,null,null,null,null,null,null,null,null,null,null,null,null,null,null,null,null,null,12,14]
[null,null,null,null,null,null,2,null,null,null,null,null,null,null,null,null,null,null,null,null,null,null,null,null,16,10]
[null,null,null,null,null,null,1,null,null,null,null,null,null,null,null,null,null,null,null,null,null,null,null,null,10,12]
[null,null,null,null,null,null,3,null,null,null,null,null,null,null,null,null,null,null,null,null,null,null,null,null,11,15]
[null,null,null,null,null,null,1,null,null,null,null,null,null,null,null,null,null,null,null,null,null,null,null,null,12,11]
[null,null,null,null,null,null,2,null,null,null,null,null,null,null,null,null,null,null,null,null,null,null,null,null,17,18]
[null,null,null,null,null,null,3,null,null,null,null,null,null,null,null,null,null,null,null,null,null,null,null,null,10,20]
[null,null,null,null,null,null,0,null,null,null,null,null,null,null,null,null,null,null,null,null,null,null,null,null,19,12]
[null,null,null,null,null,null,2,null,null,null,null,null,null,null,null,null,null,null,null,null,null,null,null,null,13,19]
[null,null,null,null,null,null,0,null,null,null,null,null,null,null,null,null,null,null,null,null,null,null,null,null,20,20]
[null,null,null,null,null,null,2,null,null,null,null,null,null,null,null,null,null,null,null,null,null,null,null,null,17,12]

{"sheet":"Estadísticos","index":1,"n_rows":55,"n_cols":21,"rows_kept":55,"cut":false,"hidden":false,"merged":[]}
[null,null,null,null,null,null,null,null,null,null,null,null," "," "," "," "," "," "," "," "," "]
[null,null,null,null,null,null,null,null,null,null,null,null," "," "," "," "," "," "," "," "," "]
[null,"Estadísticos de momentos",null,null,"Tabla de frecuencias",null,null,null,"Gráfico",null,null,null," "," "," "," "," "," "," "," "," "]
[null,null,null,null,null,null,null,null,null,null,null,null," "," "," "," "," "," "," "," "," "]
[null,"Media",1.49,null," "," ",null,null,null,null,null,0,1]
[null,"Desviación típica",0.80616375507709359,null,0,11]
[null,"Asimetría",-8.207650395401983E-2,null,1,38]
[null,"Curtosis",-0.48942883042287955,null,2,42]
[null,null,null,null,3,9]
[null,null,null,null," "," "]
[null,null,null,null," "," "]
[null,"Valores teóricos",null,null," "," "]
[" ","Media",1.5," "," "," "]
[" ","Desviación típica",0.8660254037844386," "," "," "]
[" ","Asimetría",0," "," "," "]
[" ","Curtosis",-0.66666666666666674," "," "," "]
[" "," "," "," "," "," "]
[" "," "," "," "," "," "]
[" "," "," "," "," "," "]
[" "," "," "," "," "," "]
[" "," "," "," "," "," "]
[null,null,null,null," "," "]
["a",3,2,12," "," "]
["b",3,3,16," "," "]
["f",9,417,432," "," "]
["h",0.09,0.41699999999999998,0.432," "," "]
[null,null,null,null," "," "]
[null,null,null,null," "," "]
[null,null,null,null," "," "]
[null,null,null,null," "," "]
[null,null,null,null," "," "]
[null,null,null,null," "," "]
[null,null,null,null," "," "]
[null,null,null,null," "," "]
[null,null,null,null," "," "]
[null,null,null,null," "," "]
[null,null,null,null," "," "]
[null,null,null,null," "," "]
[null,null,null,null," "," "]
[null,null,null,null," "," "]
[null,null,null,null," "," "]
[null,null,null,null," "," "]
[null,null,null,null," "," "]
[null,null,null,null," "," "]
[null,null,null,null," "," "]
[null,null,null,null," "," "]
[null,null,null,null," "," "]
[null,null,null,null," "," "]
[null,null,null,null," "," "]
[null,null,null,null," "," "]
[null,null,null,null," "," "]
[null,null,null,null," "," "]
[null,null,null,null," "," "]
[null,null,null,null," "," "]
[null,null,null,null," "," "]

{"sheet":"Regresión","index":2,"n_rows":18,"n_cols":5,"rows_kept":18,"cut":false,"hidden":false,"merged":[[3,4,7,9]]}
[]
[]
[null,"Estadísticos de X e Y"]
[null,null,null,null,"HOJA EN CONSTRUCCIÓN"]
[null,"Media X",79.998683919918363]
[null,"Desv. X",2.0162779088874729]
[null,"Media Y",31.996080981464409]
[null,"Desv. Y",3.1186750852202847]
[null,"Covarianza",4.8528606642298655]
[]
[]
[]
[]
[]
[]
[null,"Media y sigma en su sitio"]
[null,"Media de y","En parámetro A"]
[null,"pendiente","En B"]

{"sheet":"Galton","index":3,"n_rows":34,"n_cols":16,"rows_kept":34,"cut":false,"hidden":false,"merged":[[1,1,3,12]]}
[]
[null,"Experimento de Galton"]
[]
[]
[]
[null,null,null,null,null,null,null,null,null,null,null,null,null,"Versión 2019 con probabilidad fijada"]
["Instrucciones en la parte inferior"]
[null,null,null,null,null,null,null,2]
[null,null,null,null,null,null,null,{"$f":"IF(H8<>0,\"O\",\"\")","v":"O"}]
[null,null,null,null,null,null,0,null,1]
[null,null,null,null,null,null,{"$f":"IF(G10<>0,\"O\",\"\")","v":""},null,{"$f":"IF(I10<>0,\"O\",\"\")","v":"O"}]
[null,null,null,null,null,0,null,1,null,0]
[null,null,null,null,null,{"$f":"IF(F12<>0,\"O\",\"\")","v":""},null,{"$f":"IF(H12<>0,\"O\",\"\")","v":"O"},null,{"$f":"IF(J12<>0,\"O\",\"\")","v":""}]
[null,null,null,null,0,null,2,null,0,null,0]
[null,null,null,null,{"$f":"IF(E14<>0,\"O\",\"\")","v":""},null,{"$f":"IF(G14<>0,\"O\",\"\")","v":"O"},null,{"$f":"IF(I14<>0,\"O\",\"\")","v":""},null,{"$f":"IF(K14<>0,\"O\",\"\")","v":""}]
[null,null,null,0,null,0,null,2,null,0,null,0]
[null,null,null,{"$f":"IF(D16<>0,\"O\",\"\")","v":""},null,{"$f":"IF(F16<>0,\"O\",\"\")","v":""},null,{"$f":"IF(H16<>0,\"O\",\"\")","v":"O"},null,{"$f":"IF(J16<>0,\"O\",\"\")","v":""},null,{"$f":"IF(L16<>0,\"O\",\"\")","v":""}]
[null,null,0,null,0,null,0,null,1,null,0,null,0]
[null,null,{"$f":"IF(C18<>0,\"O\",\"\")","v":""},null,{"$f":"IF(E18<>0,\"O\",\"\")","v":""},null,{"$f":"IF(G18<>0,\"O\",\"\")","v":""},null,{"$f":"IF(I18<>0,\"O\",\"\")","v":"O"},null,{"$f":"IF(K18<>0,\"O\",\"\")","v":""},null,{"$f":"IF(M18<>0,\"O\",\"\")","v":""},null,null,"Número de tiradas de la serie"]
[]
["Tiradas:",1000,3,0,23,0,149,0,311,0,340,0,174,null,null,1000]
[]
[null,"Teoría",{"$f":"ROUND($B21*(1-$P25)^5,1)","v":2.4},null,{"$f":"ROUND($B21*$P25*(1-$P25)^4*5,1)","v":28.4},null,{"$f":"ROUND($B21*$P25^2*(1-$P25)^3*10,1)","v":132.30000000000001},null,{"$f":"ROUND($B21*$P25^3*(1-$P25)^2*10,1)","v":308.7},null,{"$f":"ROUND($B21*$P25^4*(1-$P25)*5,1)","v":360.2},null,{"$f":"ROUND($B21*$P25^5,1)","v":168.1},null,null,"Probabilidad"]
[]
[null,"Diferencias",{"$f":"C21-C23","v":0.60000000000000009}," ",{"$f":"E21-E23","v":-5.3999999999999986},null,{"$f":"G21-G23","v":16.699999999999989},null,{"$f":"I21-I23","v":2.3000000000000114},null,{"$f":"K21-K23","v":-20.199999999999989},null,{"$f":"M21-M23","v":5.9000000000000057},null,null,0.7]
[]
[]
[null,null,"Instrucciones"]
[]
[null,null,"Para una primera tirada pulsa el botón Inicio"]
[null,null,"Después vas pulsando sobre el botón Tirada las veces que desees"]
[null,null,"Para una serie, escribe el número de tiradas y pulsa el botón Serie"]
[null,null,"Observa las frecuencias teóricas, los resultados de las tiradas y sus diferencias."]
[null,null,"El gráfico irá evolucionando con las tiradas."]

{"sheet":"Instrucciones","index":4,"n_rows":78,"n_cols":3,"rows_kept":78,"cut":false,"hidden":false,"merged":[]}
[]
[]
["Enlaces"]
[null,null,"Pasos para cada  tipo de simulación"]
["Generales"]
["Uniforme",null,"Generales"]
["Normal"]
["Bernouilli",null,"Elige número de filas y columnas y si deseas repetir varias veces el experimento para un mejor ajuste (los datos se acumulan)"]
["Binomial"]
[]
[]
[]
[null,null,"Elige el tipo de simulación:"]
[]
[null,null,"En la mayoría de los tipos conviene concretar el número de intervalos para la tabla. Entre 8 y 15 está bien."]
[]
[]
[]
[null,null,"En algunas simulaciones desearás decimales y en otras no (o por su propia naturaleza). Concrétalo:"]
[]
[]
[null,null,"Uniforme"]
[]
[null,null,"En ella los datos se distribuyen de forma uniforme, sin ninguna tendencia, entre un máximo y mínimo o alrededor de una media."]
[null,null,"Elige el tipo \"Uniforme\":"]
[]
[null,null,"Lo normal en este tipo es trabajar con Máximo y mínimo. Si es así. Concreta sus valores "]
[]
[null,null,"Activa la opción \"Máximo-Mínimo\" en el desplegable:"]
[]
[null,null,"Si deseas usar una media y desviación típica, los datos se extenderán varias sigmas alrededor de la media. Deberás activar:"]
[]
[]
[]
[]
[]
[null,null,"Normal"]
[]
[null,null,"En ella los datos se distribuyen de forma de campana, siguiendo aproximadamente la curva de Gauss."]
[null,null,"Elige el tipo \"Normal\":"]
[]
[]
[null,null,"Como en el caso anterior, elige entre Máximo-Mínimo o Media-Desviación"]
[]
[]
[]
[]
[]
[]
[]
[null,null,"El resto del proceso es similar a las anteriores. Si eliges Máximo-Mínimo, sus valores serán sólo orientativos."]
[null,null,"También puedes optar por usar decimales o enteros."]
[]
[null,null,"Bernouilli"]
[]
[null,null,"Como tipo de simulación elige Bernouilli con el desplegable:"]
[]
[]
[]
[null,null,"La probabilidad a favor la escribes en el parámetro A"]
[null,null,"Si es una fracción, como por ejemplo 1/3, escríbela con signo = delante y se traducirá a decimales."]
[]
[]
[]
[]
[null,null,"El resto de condiciones, como en las demás simulaciones."]
[null,null,"La elección de entero-decimal o la de media o max.min, no influye en este caso."]
[null,null,"Los resultados serán 0 (no ocurre) y 1 (sí ocurre)"]
[null,null,"El número de intervalos se fija en 2"]
[]
[null,null,"Binomial"]
[]
[null,null,"El total de intentos en cada “tirada” los escribimos como parámetro A"]
[null,null,"La probabilidad de éxito, como parámetro B. Si es una fracción, se escribe con el signo = delante"]
[]
[]
[null,null,"En la imagen se ha diseñado un experimento con 6 intentos y probabilidad 0,2 de éxito."]
[null,null,"El número de intervalos, el mínimo y el máximo lo fija la hoja. Es preferible que no escribas nada."]